fUSD/lending_fUSD_20260515
["ID","MTS","AMOUNT","RATE_DAILY","PERIOD"]
[422276734,1778785847000,-151.0,0.00014795,2]
[422276732,1778785847000,-151.0,0.00014795,2]
[422276730,1778785847000,-283.35,0.00014795,2]
[422276729,1778785847000,-445.31366292,0.0001,2]
[422276736,1778785847000,-151.0,0.00014795,2]
[422276752,1778786086000,178.21,6.014e-05,2]
[422276753,1778786406000,152.0,0.00013713,7]
[422276754,1778786407000,152.0,0.00013713,7]
[422276756,1778786794000,-97.19452906,9.636e-05,2]
[422276755,1778786794000,-250.0,9.596e-05,2]
[422276759,1778786877000,155.55,8.058e-05,2]
[422276758,1778786877000,155.55,6.485e-05,2]
[422276757,1778786877000,155.55,4.912e-05,2]
[422276760,1778786896000,152.0,0.00013699,7]
[422276761,1778786897000,152.0,0.00013699,7]
[422276784,1778787031000,-185.59282774,9.664e-05,2]
[422276782,1778787031000,-97.78511342,9.664e-05,2]
[422276780,1778787031000,-560.91314724,9.664e-05,2]
[422276778,1778787031000,-356.00875095,9.664e-05,2]
[422276777,1778787031000,-500.0,9.664e-05,2]
[422276779,1778787031000,-197.74584602,9.664e-05,2]
[422276776,1778787031000,-212.23590121,9.664e-05,2]
[422276773,1778787031000,-150.0,9.663e-05,2]
[422276770,1778787031000,-300.0,9.663e-05,2]
[422276775,1778787031000,-246.11033385,9.664e-05,2]
[422276774,1778787031000,-253.88966615,9.664e-05,2]
[422276768,1778787031000,-155.55,9.631e-05,2]
[422276766,1778787031000,-397.84647269,9.537e-05,2]
[422276771,1778787031000,-997.88966615,9.663e-05,2]
[422276769,1778787031000,-250.0,9.633e-05,2]
[422276767,1778787031000,-146.22352731,9.537e-05,2]
[422276785,1778787031000,-500.0,9.664e-05,2]
[422276772,1778787031000,-202.11033385,9.663e-05,2]
[422276783,1778787031000,-214.40717226,9.664e-05,2]
[422276781,1778787031000,-402.21488658,9.664e-05,2]
[422276788,1778787031000,-500.0,9.664e-05,2]
[422276786,1778787031000,-500.0,9.664e-05,2]
[422276804,1778787031000,-105419.40680288,9.665e-05,2]
[422276803,1778787031000,-1316.21358455,9.665e-05,2]
[422276799,1778787031000,-303.99304413,9.664e-05,2]
[422276802,1778787031000,-500.0,9.664e-05,2]
[422276800,1778787031000,-500.0,9.664e-05,2]
[422276801,1778787031000,-500.0,9.664e-05,2]
[422276798,1778787031000,-500.0,9.664e-05,2]
[422276794,1778787031000,-500.0,9.664e-05,2]
[422276795,1778787031000,-500.0,9.664e-05,2]
[422276792,1778787031000,-193.16322626,9.664e-05,2]
[422276791,1778787031000,-500.0,9.664e-05,2]
[422276790,1778787031000,-500.0,9.664e-05,2]
[422276787,1778787031000,-500.0,9.664e-05,2]
[422276789,1778787031000,-500.0,9.664e-05,2]
[422276806,1778787031000,-510085.86459563,9.665e-05,2]
[422276797,1778787031000,-500.0,9.664e-05,2]
[422276796,1778787031000,-500.0,9.664e-05,2]
[422276793,1778787031000,-306.83677374,9.664e-05,2]
[422276921,1778787039000,-80183.38501996,9.665e-05,2]
[422276920,1778787039000,-9741.00666076,9.665e-05,2]
[422276919,1778787039000,-3222.36612,9.665e-05,2]
[422276922,1778787039000,-1089.19505249,9.665e-05,2]
[422276927,1778787039000,-315.0,9.665e-05,2]
[422276924,1778787039000,-708.38683977,9.665e-05,2]
[422276925,1778787039000,-2484.84122466,9.665e-05,2]
[422276926,1778787039000,-744.3463817,9.665e-05,2]
[422276923,1778787039000,-874.22355268,9.665e-05,2]
[422276939,1778787040000,-990099.7465365,9.665e-05,2]
[422276931,1778787040000,-4272.94066181,9.665e-05,2]
[422276928,1778787040000,-4564.38736795,9.665e-05,2]
[422276930,1778787040000,-1284.69103545,9.665e-05,2]
[422276929,1778787040000,-2221.88386102,9.665e-05,2]
[422276932,1778787040000,-1418.36249131,9.665e-05,2]
[422276934,1778787040000,-86635.9199613,9.665e-05,2]
[422276933,1778787040000,-3129.14452436,9.665e-05,2]
[422276936,1778787040000,-3494.11304809,9.665e-05,2]
[422276938,1778787040000,-2874.46437079,9.665e-05,2]
[422276947,1778787040000,-571.59043307,9.665e-05,2]
[422276935,1778787040000,-847.49539977,9.665e-05,2]
[422276937,1778787040000,-2992.09560657,9.665e-05,2]
[422276941,1778787040000,-730.44590888,9.665e-05,2]
[422276943,1778787040000,-398.23705892,9.665e-05,2]
[422276942,1778787040000,-748.26893567,9.665e-05,2]
[422276944,1778787040000,-365.54270048,9.665e-05,2]
[422276948,1778787040000,-2739.0,9.665e-05,2]
[422276945,1778787040000,-796.01445531,9.665e-05,2]
[422276946,1778787040000,-691.58645727,9.665e-05,2]
[422276940,1778787040000,-427883.48474353,9.665e-05,2]
[422277324,1778787043000,-1227.5868893,9.665e-05,2]
[422277309,1778787043000,-157674.99462128,9.665e-05,2]
[422277634,1778787045000,-817.93,9.665e-05,2]
[422278051,1778787048000,-369521.85865745,9.665e-05,2]
[422278289,1778787050000,152.0,0.00013711,7]
[422279959,1778787764000,1410.27522301,0.00027397,120]
[422279966,1778787776000,-2388.669,9.472e-05,2]
[422279960,1778787776000,-312.3169,9.372e-05,2]
[422279961,1778787776000,-1000.0,9.441e-05,2]
[422279962,1778787776000,-241.96,9.441e-05,2]
[422279963,1778787776000,-1029.82662294,9.461e-05,2]
[422279964,1778787776000,-236.13848814,9.465e-05,2]
[422279965,1778787776000,-165.751,9.472e-05,2]
[422279971,1778787776000,-194.0,9.564e-05,2]
[422279969,1778787776000,-300.0,9.564e-05,2]
[422279968,1778787776000,-159.0,9.563e-05,2]
[422279974,1778787776000,-19305.79008892,9.565e-05,2]
[422279970,1778787776000,-1200.0,9.564e-05,2]
[422279973,1778787776000,-4166.5479,9.565e-05,2]
[422279972,1778787776000,-150.0,9.564e-05,2]
[422279967,1778787776000,-150.0,9.554e-05,2]
[422279975,1778787783000,152.0,0.00013711,7]
[422279977,1778787991000,-169.71945291,9.472e-05,2]
[422279979,1778788077000,152.06,6.28e-05,2]
[422279978,1778788077000,152.06,5.902e-05,2]
[422279980,1778788078000,152.06,6.658e-05,2]
[422279983,1778788078000,152.06,7.792e-05,2]
[422279982,1778788078000,152.06,7.414e-05,2]
[422279981,1778788078000,152.06,7.036e-05,2]
[422279984,1778788079000,152.06,8.17e-05,2]
[422279997,1778788231000,-150.0,9.564e-05,2]
[422279994,1778788231000,-300.0,9.563e-05,2]
[422280002,1778788231000,-2500.0,9.565e-05,2]
[422279993,1778788231000,-166.284,9.472e-05,2]
[422279995,1778788231000,-1200.0,9.563e-05,2]
[422279991,1778788231000,-250.0,9.403e-05,2]
[422279985,1778788231000,-152.06,8.548e-05,2]
[422279990,1778788231000,-250.0,9.403e-05,2]
[422279988,1778788231000,-152.06,9.304e-05,2]
[422279989,1778788231000,-250.0,9.403e-05,2]
[422279986,1778788231000,-152.06,8.926e-05,2]
[422279987,1778788231000,-8713.22,9.245e-05,2]
[422279998,1778788231000,-5000.0,9.565e-05,2]
[422279992,1778788231000,-2215.50254709,9.472e-05,2]
[422279996,1778788231000,-270.72899195,9.564e-05,2]
[422280004,1778788231000,-546.3288902,9.663e-05,2]
[422280000,1778788231000,-1500000.0,9.565e-05,2]
[422280015,1778788231000,-471.16,9.665e-05,2]
[422280014,1778788231000,-5722.88516066,9.665e-05,2]
[422280001,1778788231000,-2161.8558,9.565e-05,2]
[422280011,1778788231000,-102369.43923102,9.665e-05,2]
[422280013,1778788231000,-370.50525017,9.665e-05,2]
[422280010,1778788231000,-167884.58132015,9.665e-05,2]
[422280012,1778788231000,-118816.95299768,9.665e-05,2]
[422280008,1778788231000,-999.99,9.664e-05,2]
[422280007,1778788231000,-9999.99,9.664e-05,2]
[422280009,1778788231000,-528684.84607187,9.665e-05,2]
[422280005,1778788231000,-1580.50280252,9.664e-05,2]
[422280003,1778788231000,-9999.99,9.565e-05,2]
[422279999,1778788231000,-8227.347,9.565e-05,2]
[422280006,1778788231000,-8491.87,9.664e-05,2]
[422280028,1778788237000,-1511127.51782947,9.665e-05,2]
[422280027,1778788237000,-25943.77926193,9.665e-05,2]
[422280026,1778788237000,-478.28340082,9.665e-05,2]
[422280025,1778788237000,-2110.75774816,9.665e-05,2]
[422280024,1778788237000,-208.3309892,9.245e-05,2]
[422280057,1778788241000,-865.76640439,9.665e-05,2]
[422280056,1778788241000,-776.90309751,9.665e-05,2]
[422280059,1778788241000,-4763.7813356,9.665e-05,2]
[422280061,1778788241000,-145876.7954805,9.665e-05,2]
[422280060,1778788241000,-3353.2703376,9.665e-05,2]
[422280062,1778788241000,-91390.41655211,9.665e-05,2]
[422280058,1778788241000,-34376.62222617,9.665e-05,2]
[422280063,1778788241000,-431615.46967122,9.665e-05,2]
[422280081,1778788243000,-15509.88605839,9.665e-05,2]
[422280080,1778788243000,-322.74642958,9.665e-05,2]
[422280079,1778788243000,-12581.8708063,9.665e-05,2]
[422280077,1778788243000,-18.85771699,9.665e-05,2]
[422280078,1778788243000,-239360.67540898,9.665e-05,2]
[422280089,1778788245000,-17967.17615242,9.665e-05,2]
[422280088,1778788245000,-1789.91913859,9.665e-05,2]
[422280091,1778788245000,-630.18292508,9.665e-05,2]
[422280092,1778788245000,-522.72987292,9.665e-05,2]
[422280094,1778788245000,-494.17,9.665e-05,2]
[422280093,1778788245000,-101.27012708,9.665e-05,2]
[422280090,1778788245000,-1152.912798,9.665e-05,2]
[422280117,1778788246000,-200.0,0.00010379,2]
[422280112,1778788246000,-160.0,0.00010267,2]
[422280114,1778788246000,-2052.49,0.00010278,2]
[422280115,1778788246000,-2000.0,0.0001029,2]
[422280116,1778788246000,-166.16,0.0001031,2]
[422280113,1778788246000,-214.95940296,0.00010267,2]
[422280118,1778788246000,-152.06,0.00010438,2]
[422280119,1778788246000,-5238.50748873,0.00010495,2]
[422280121,1778788246000,-2052.49,0.00010529,2]
[422280120,1778788246000,-1680.0,0.00010519,2]
[422280111,1778788246000,-237.994593,0.00010189,2]
[422280124,1778788246000,-152.06,0.00010816,2]
[422280107,1778788246000,-205.15063759,0.0001,2]
[422280101,1778788246000,-813.98994,9.67e-05,2]
[422280104,1778788246000,-152.06,9.682e-05,2]
[422280110,1778788246000,-152.06,0.0001006,2]
[422280105,1778788246000,-296.87577528,0.0001,2]
[422280106,1778788246000,-205.15063759,0.0001,2]
[422280102,1778788246000,-1394.29526015,9.67e-05,2]
[422280103,1778788246000,-150.99,9.67e-05,2]
[422280122,1778788246000,-544.07,0.00010729,2]
[422280099,1778788246000,-7800.01036966,9.665e-05,2]
[422280100,1778788246000,-96970.37863814,9.67e-05,2]
[422280098,1778788246000,-6051.16134135,9.665e-05,2]
[422280097,1778788246000,-151.0,9.665e-05,2]
[422280095,1778788246000,-557.47267092,9.665e-05,2]
[422280096,1778788246000,-1152.912798,9.665e-05,2]
[422280109,1778788246000,-2052.49,0.00010027,2]
[422280126,1778788246000,-9715.34168834,0.000109,2]
[422280123,1778788246000,-2052.49,0.00010779,2]
[422280128,1778788246000,-151.0,0.00010959,2]
[422280156,1778788246000,-296.87577528,0.00012233,2]
[422280154,1778788246000,-277.87036812,0.00012087,2]
[422280153,1778788246000,-1000.0,0.00011999,2]
[422280155,1778788246000,-19722.11963188,0.00012087,2]
[422280151,1778788246000,-291.78500091,0.00011936,2]
[422280152,1778788246000,-1384.15486052,0.00011936,2]
[422280125,1778788246000,-9715.34168837,0.000109,2]
[422280149,1778788246000,-544.07,0.00011922,2]
[422280147,1778788246000,-150.0,0.00011732,2]
[422280148,1778788246000,-150.0,0.00011812,2]
[422280146,1778788246000,-153.62,0.00011624,2]
[422280143,1778788246000,-152.06,0.00011572,2]
[422280145,1778788246000,-500.0,0.00011602,2]
[422280142,1778788246000,-218.0,0.00011571,2]
[422280144,1778788246000,-2000.0,0.00011577,2]
[422280150,1778788246000,-274.80010645,0.00011936,2]
[422280139,1778788246000,-1384.15486052,0.00011343,2]
[422280141,1778788246000,-341.15925576,0.00011559,2]
[422280127,1778788246000,-151.0,0.00010959,2]
[422280129,1778788246000,-9715.34168834,0.00011018,2]
[422280130,1778788246000,-2052.49,0.0001103,2]
[422280134,1778788246000,-566.58510738,0.00011099,2]
[422280132,1778788246000,-1384.15486052,0.00011099,2]
[422280133,1778788246000,-1384.15486052,0.00011099,2]
[422280135,1778788246000,-566.58510736,0.00011099,2]
[422280136,1778788246000,-566.58510736,0.00011099,2]
[422280138,1778788246000,-566.58510736,0.00011343,2]
[422280137,1778788246000,-152.06,0.00011194,2]
[422280140,1778788246000,-183.4,0.00011404,2]
[422280131,1778788246000,-1384.15486057,0.00011099,2]
[422280204,1778788247000,-500.0,0.00013698,2]
[422280196,1778788247000,-335.47957646,0.00013698,2]
[422280195,1778788247000,-201.79210336,0.00013698,2]
[422280197,1778788247000,-500.0,0.00013698,2]
[422280194,1778788247000,-500.0,0.00013698,2]
[422280200,1778788247000,-500.0,0.00013698,2]
[422280202,1778788247000,-351.15086072,0.00013698,2]
[422280203,1778788247000,-500.0,0.00013698,2]
[422280209,1778788247000,-166.66,0.00013699,2]
[422280198,1778788247000,-500.0,0.00013698,2]
[422280206,1778788247000,-500.0,0.00013698,2]
[422280205,1778788247000,-500.0,0.00013698,2]
[422280213,1778788247000,-310.568302,0.00013699,2]
[422280208,1778788247000,-2500.0,0.00013699,2]
[422280212,1778788247000,-310.568302,0.00013699,2]
[422280210,1778788247000,-310.568302,0.00013699,2]
[422280207,1778788247000,-200.0,0.00013699,2]
[422280199,1778788247000,-500.0,0.00013698,2]
[422280211,1778788247000,-310.568302,0.00013699,2]
[422280201,1778788247000,-500.0,0.00013698,2]
[422280162,1778788247000,-566.58510736,0.00012529,2]
[422280158,1778788247000,-493.86,0.00012329,2]
[422280160,1778788247000,-160.35,0.00012329,2]
[422280164,1778788247000,-1384.15486052,0.00012529,2]
[422280166,1778788247000,-2000.0,0.00012863,2]
[422280170,1778788247000,-462.0,0.00013122,5]
[422280177,1778788247000,-1384.15486052,0.00013122,2]
[422280168,1778788247000,-544.07,0.00013114,2]
[422280193,1778788247000,-500.0,0.00013698,2]
[422280179,1778788247000,-235.0,0.00013389,5]
[422280173,1778788247000,-371.0,0.00013122,5]
[422280181,1778788247000,-150.0,0.00013488,2]
[422280174,1778788247000,-566.58510736,0.00013122,2]
[422280185,1778788247000,-223.86450723,0.00013488,2]
[422280187,1778788247000,-251.47180583,0.00013488,2]
[422280189,1778788247000,-150.0,0.00013488,2]
[422280191,1778788247000,-150.0,0.00013488,2]
[422280192,1778788247000,-500.0,0.00013698,2]
[422280183,1778788247000,-150.0,0.00013488,2]
[422280215,1778788247000,-1384.15486052,0.00013714,2]
[422280222,1778788247000,-154.0,0.00014225,2]
[422280216,1778788247000,-166.66,0.00013836,2]
[422280238,1778788247000,-228.75354,0.0001492,2]
[422280249,1778788247000,-9397.29108389,0.00015,2]
[422280242,1778788247000,-3049.7372964,0.00014988,2]
[422280240,1778788247000,-228.75353,0.0001497,2]
[422280246,1778788247000,-300.0,0.00014999,2]
[422280248,1778788247000,-195.85268885,0.00014999,2]
[422280244,1778788247000,-151.0,0.00014997,2]
[422280245,1778788247000,-300.0,0.00014999,2]
[422280243,1778788247000,-205.15063759,0.0001499,2]
[422280247,1778788247000,-300.0,0.00014999,2]
[422280250,1778788247000,-39144.85979316,0.00015,2]
[422280251,1778788247000,-177405.82465229,0.00015,2]
[422280253,1778788247000,-664.30019134,0.00015,2]
[422280252,1778788247000,-5393.42694293,0.00015,2]
[422280254,1778788247000,-1995.53204516,0.00015,2]
[422280255,1778788247000,-4374.04848253,0.00015,2]
[422280214,1778788247000,-566.58510736,0.00013714,2]
[422280239,1778788247000,-529.5081285,0.00014938,2]
[422280236,1778788247000,-1384.15486052,0.000149,2]
[422280241,1778788247000,-151.0,0.00014986,2]
[422280235,1778788247000,-566.58510736,0.000149,2]
[422280234,1778788247000,-296.87577528,0.000149,2]
[422280219,1778788247000,-166.66,0.0001411,2]
[422280217,1778788247000,-166.66,0.00013973,2]
[422280224,1778788247000,-151.0,0.00014225,2]
[422280218,1778788247000,-250.0,0.00014,2]
[422280220,1778788247000,-2000.0,0.00014149,2]
[422280221,1778788247000,-1534.0,0.00014225,2]
[422280225,1778788247000,-283.24486373,0.00014225,2]
[422280226,1778788247000,-166.66,0.00014247,2]
[422280223,1778788247000,-234.60838793,0.00014225,2]
[422280227,1778788247000,-544.07,0.00014306,2]
[422280228,1778788247000,-566.58510736,0.00014307,2]
[422280237,1778788247000,-1138.26723207,0.000149,2]
[422280229,1778788247000,-1384.15486052,0.00014307,2]
[422280230,1778788247000,-166.66,0.00014384,2]
[422280232,1778788247000,-600.2284,0.00014899,2]
[422280233,1778788247000,-1000.0,0.00014899,2]
[422280231,1778788247000,-228.75353,0.0001488,2]
[422280272,1778788345000,-519.30282299,9.564e-05,2]
[422280273,1778788345000,-519.30282299,9.564e-05,2]
[422280270,1778788345000,-519.30282299,9.564e-05,2]
[422280271,1778788345000,-519.30282299,9.564e-05,2]
[422280268,1778788345000,-519.30282299,9.564e-05,2]
[422280267,1778788345000,-519.30282299,9.564e-05,2]
[422280269,1778788345000,-519.30282299,9.564e-05,2]
[422280266,1778788345000,-519.30282299,9.564e-05,2]
[422280262,1778788345000,-519.30282299,9.564e-05,2]
[422280263,1778788345000,-519.30282299,9.564e-05,2]
[422280265,1778788345000,-519.30282299,9.564e-05,2]
[422280261,1778788345000,-519.30282299,9.564e-05,2]
[422280260,1778788345000,-519.30282299,9.564e-05,2]
[422280259,1778788345000,-519.30282299,9.564e-05,2]
[422280258,1778788345000,-300.0,9.563e-05,2]
[422280276,1778788345000,-519.30282299,9.564e-05,2]
[422280264,1778788345000,-519.30282299,9.564e-05,2]
[422280275,1778788345000,-519.30282299,9.564e-05,2]
[422280278,1778788345000,-519.30282299,9.564e-05,2]
[422280277,1778788345000,-519.30282299,9.564e-05,2]
[422280274,1778788345000,-519.30282299,9.564e-05,2]
[422280293,1778788345000,-519.30282299,9.564e-05,2]
[422280292,1778788345000,-519.30282299,9.564e-05,2]
[422280291,1778788345000,-519.30282299,9.564e-05,2]
[422280290,1778788345000,-519.30282299,9.564e-05,2]
[422280289,1778788345000,-519.30282299,9.564e-05,2]
[422280288,1778788345000,-519.30282299,9.564e-05,2]
[422280287,1778788345000,-519.30282299,9.564e-05,2]
[422280286,1778788345000,-519.30282299,9.564e-05,2]
[422280284,1778788345000,-519.30282299,9.564e-05,2]
[422280283,1778788345000,-519.30282299,9.564e-05,2]
[422280282,1778788345000,-519.30282299,9.564e-05,2]
[422280279,1778788345000,-519.30282299,9.564e-05,2]
[422280280,1778788345000,-519.30282299,9.564e-05,2]
[422280281,1778788345000,-519.30282299,9.564e-05,2]
[422280294,1778788345000,-519.30282299,9.564e-05,2]
[422280285,1778788345000,-519.30282299,9.564e-05,2]
[422280298,1778788346000,-519.30282299,9.564e-05,2]
[422280295,1778788346000,-519.30282299,9.564e-05,2]
[422280297,1778788346000,-519.30282299,9.564e-05,2]
[422280299,1778788346000,-519.30282299,9.564e-05,2]
[422280296,1778788346000,-519.30282299,9.564e-05,2]
[422280302,1778788346000,-519.30282299,9.564e-05,2]
[422280303,1778788346000,-519.30282299,9.564e-05,2]
[422280301,1778788346000,-519.30282299,9.564e-05,2]
[422280304,1778788346000,-519.30282299,9.564e-05,2]
[422280305,1778788346000,-12.07014246,9.564e-05,2]
[422280300,1778788346000,-519.30282299,9.564e-05,2]
[422280307,1778788847000,150.0,0.00014,120]
[422280308,1778788867000,152.0,0.00013721,7]
[422280317,1778789039000,150.0,0.00014,120]
[422280319,1778789061000,152.0,0.00013706,7]
[422280324,1778789144000,154.28,7.488e-05,2]
[422280323,1778789144000,154.28,7.062e-05,2]
[422280322,1778789144000,154.28,6.636e-05,2]
[422280321,1778789144000,154.28,6.21e-05,2]
[422280325,1778789145000,154.28,7.914e-05,2]
[422280326,1778789228000,150.0,0.00014,120]
[422280333,1778789418000,150.0,0.00014,120]
[422280337,1778789431000,-154.28,8.34e-05,2]
[422280338,1778789431000,-250.0,8.553e-05,2]
[422280340,1778789431000,-321.56478569,8.931e-05,2]
[422280339,1778789431000,-154.28,8.766e-05,2]
[422280341,1778789431000,-150.0,9.007e-05,2]
[422280345,1778789431000,-24480.0552802,9.237e-05,2]
[422280344,1778789431000,-1426.2247198,9.237e-05,2]
[422280343,1778789431000,-154.28,9.192e-05,2]
[422280347,1778789431000,-294.46269489,9.348e-05,2]
[422280342,1778789431000,-250.0,9.174e-05,2]
[422280346,1778789431000,-1705.53730511,9.348e-05,2]
[422280348,1778789431000,-300.0,9.462e-05,2]
[422280354,1778789431000,-500.0,9.463e-05,2]
[422280351,1778789431000,-500.0,9.463e-05,2]
[422280349,1778789431000,-1200.0,9.462e-05,2]
[422280361,1778789431000,-434.93652998,9.463e-05,2]
[422280358,1778789431000,-500.0,9.463e-05,2]
[422280357,1778789431000,-500.0,9.463e-05,2]
[422280359,1778789431000,-500.0,9.463e-05,2]
[422280362,1778789431000,-65.06347002,9.463e-05,2]
[422280360,1778789431000,-500.0,9.463e-05,2]
[422280352,1778789431000,-535.84989234,9.463e-05,2]
[422280350,1778789431000,-300.0,9.462e-05,2]
[422280355,1778789431000,-500.0,9.463e-05,2]
[422280353,1778789431000,-500.0,9.463e-05,2]
[422280356,1778789431000,-500.0,9.463e-05,2]
[422280392,1778789432000,-500.0,9.463e-05,2]
[422280385,1778789432000,-500.0,9.463e-05,2]
[422280388,1778789432000,-500.0,9.463e-05,2]
[422280384,1778789432000,-500.0,9.463e-05,2]
[422280387,1778789432000,-500.0,9.463e-05,2]
[422280391,1778789432000,-500.0,9.463e-05,2]
[422280390,1778789432000,-189.51029437,9.463e-05,2]
[422280394,1778789432000,-500.0,9.463e-05,2]
[422280400,1778789432000,-500.0,9.463e-05,2]
[422280395,1778789432000,-500.0,9.463e-05,2]
[422280397,1778789432000,-500.0,9.463e-05,2]
[422280396,1778789432000,-500.0,9.463e-05,2]
[422280398,1778789432000,-449.99999999,9.463e-05,2]
[422280389,1778789432000,-500.0,9.463e-05,2]
[422280399,1778789432000,-500.0,9.463e-05,2]
[422280401,1778789432000,-265.67452838,9.463e-05,2]
[422280402,1778789432000,-234.32547162,9.463e-05,2]
[422280393,1778789432000,-500.0,9.463e-05,2]
[422280386,1778789432000,-500.0,9.463e-05,2]
[422280380,1778789432000,-429.13035108,9.463e-05,2]
[422280382,1778789432000,-388.54492506,9.463e-05,2]
[422280365,1778789432000,-500.0,9.463e-05,2]
[422280363,1778789432000,-234.17130998,9.463e-05,2]
[422280370,1778789432000,-500.0,9.463e-05,2]
[422280369,1778789432000,-500.0,9.463e-05,2]
[422280367,1778789432000,-500.0,9.463e-05,2]
[422280368,1778789432000,-500.0,9.463e-05,2]
[422280371,1778789432000,-500.0,9.463e-05,2]
[422280364,1778789432000,-265.82869002,9.463e-05,2]
[422280383,1778789432000,-500.0,9.463e-05,2]
[422280366,1778789432000,-500.0,9.463e-05,2]
[422280375,1778789432000,-465.08430479,9.463e-05,2]
[422280372,1778789432000,-500.0,9.463e-05,2]
[422280374,1778789432000,-34.91569521,9.463e-05,2]
[422280381,1778789432000,-111.45507494,9.463e-05,2]
[422280377,1778789432000,-500.0,9.463e-05,2]
[422280376,1778789432000,-500.0,9.463e-05,2]
[422280378,1778789432000,-227.25406942,9.463e-05,2]
[422280379,1778789432000,-70.86964892,9.463e-05,2]
[422280373,1778789432000,-500.0,9.463e-05,2]
[422280403,1778789432000,-153.69422538,9.463e-05,2]
[422280404,1778789432000,-346.30577462,9.463e-05,2]
[422280412,1778789432000,-500.0,9.463e-05,2]
[422280434,1778789432000,-93044.34360846,9.464e-05,2]
[422280437,1778789432000,-122686.6083581,9.464e-05,2]
[422280405,1778789432000,-500.0,9.463e-05,2]
[422280460,1778789432000,-665.79967857,9.464e-05,2]
[422280459,1778789432000,-615.73022702,9.464e-05,2]
[422280461,1778789432000,-10878.70377158,9.464e-05,2]
[422280462,1778789432000,-4751.41049392,9.464e-05,2]
[422280465,1778789432000,-2282.59913445,9.464e-05,2]
[422280464,1778789432000,-2088.41628585,9.464e-05,2]
[422280463,1778789432000,-627.92076636,9.464e-05,2]
[422280466,1778789432000,-2421.08994,9.464e-05,2]
[422280467,1778789432000,-699.59791438,9.464e-05,2]
[422280469,1778789432000,-952.0,9.464e-05,2]
[422280468,1778789432000,-659.1457183,9.464e-05,2]
[422280471,1778789432000,-3828.28037571,9.464e-05,2]
[422280473,1778789432000,-507.104,9.464e-05,2]
[422280475,1778789432000,-437.76270786,9.464e-05,2]
[422280430,1778789432000,-879111.64226149,9.464e-05,2]
[422280439,1778789432000,-1254.41808677,9.464e-05,2]
[422280432,1778789432000,-25079.2628097,9.464e-05,2]
[422280422,1778789432000,-3890.82623226,9.463e-05,2]
[422280406,1778789432000,-500.0,9.463e-05,2]
[422280411,1778789432000,-500.0,9.463e-05,2]
[422280410,1778789432000,-500.0,9.463e-05,2]
[422280408,1778789432000,-500.0,9.463e-05,2]
[422280428,1778789432000,-4200.49,9.463e-05,2]
[422280409,1778789432000,-500.0,9.463e-05,2]
[422280413,1778789432000,-500.0,9.463e-05,2]
[422280414,1778789432000,-427.34574768,9.463e-05,2]
[422280415,1778789432000,-277.4401571,9.463e-05,2]
[422280407,1778789432000,-500.0,9.463e-05,2]
[422280416,1778789432000,-500.0,9.463e-05,2]
[422280423,1778789432000,-300.0,9.463e-05,2]
[422280426,1778789432000,-227.04,9.463e-05,2]
[422280421,1778789432000,-6109.16376774,9.463e-05,2]
[422280418,1778789432000,-168.89755652,9.463e-05,2]
[422280424,1778789432000,-150.0,9.463e-05,2]
[422280419,1778789432000,-150.99,9.463e-05,2]
[422280420,1778789432000,-438.30898278,9.463e-05,2]
[422280417,1778789432000,-197.12626764,9.463e-05,2]
[422280482,1778789437000,-1706.37826445,9.464e-05,2]
[422280484,1778789438000,-287367.77209948,9.464e-05,2]
[422280483,1778789438000,-500.0,9.464e-05,2]
[422280487,1778789438000,-929.15347688,9.464e-05,2]
[422280485,1778789438000,-1212.76041889,9.464e-05,2]
[422280486,1778789438000,-1461.0458902,9.464e-05,2]
[422280548,1778789440000,-1801.5316593,9.464e-05,2]
[422280547,1778789440000,-1134.08981215,9.464e-05,2]
[422280546,1778789440000,-452.50632297,9.464e-05,2]
[422280567,1778789443000,-13068.79693595,9.464e-05,2]
[422280565,1778789443000,-15149.94472301,9.464e-05,2]
[422280568,1778789443000,-309.94254202,9.464e-05,2]
[422280566,1778789443000,-5403.71407343,9.464e-05,2]
[422280569,1778789443000,-2292.31229026,9.464e-05,2]
[422280581,1778789445000,-713.165178,9.464e-05,2]
[422280584,1778789446000,-841.75356024,9.464e-05,2]
[422280582,1778789446000,-1055.06439004,9.464e-05,2]
[422280583,1778789446000,-12432.43033639,9.464e-05,2]
[422280612,1778789607000,150.0,0.00014,120]